[Event "Early-Titled-Tuesday-Blitz-April-02-2024"]
[Site "Chess.com"]
[Date "2024.04.02"]
[Round "1"]
[White "lamomiajunior"]
[Black "sorch29"]
[Result "1/2-1/2"]
[WhiteElo "2713"]
[BlackElo "2422"]
[TimeControl "180+1"]
[EndTime "8:09:21 PDT"]
[Termination "Game drawn by repetition"]

1. d4 {[%clk 0:03:00.9]} 1... Nf6 {[%clk 0:02:59]} 2. c4 {[%clk 0:03:01.4]} 2...
e6 {[%clk 0:02:58.6]} 3. Nc3 {[%clk 0:03:01.6]} 3... d5 {[%clk 0:02:59.4]} 4.
cxd5 {[%clk 0:03:01.5]} 4... Nxd5 {[%clk 0:03:00.2]} 5. e4 {[%clk 0:03:02]} 5...
Nxc3 {[%clk 0:03:00.9]} 6. bxc3 {[%clk 0:03:02.9]} 6... c5 {[%clk 0:03:01.5]} 7.
Rb1 {[%clk 0:03:03.6]} 7... Be7 {[%clk 0:02:50.4]} 8. Nf3 {[%clk 0:03:01.7]}
8... O-O {[%clk 0:02:45.3]} 9. Be2 {[%clk 0:02:52.4]} 9... b6 {[%clk 0:02:41.5]}
10. d5 {[%clk 0:02:50]} 10... exd5 {[%clk 0:02:35.7]} 11. exd5 {[%clk
0:02:50.9]} 11... Bf5 {[%clk 0:02:32.3]} 12. Rb3 {[%clk 0:02:35.6]} 12... Bd6
{[%clk 0:01:52.6]} 13. O-O {[%clk 0:02:33.9]} 13... Nd7 {[%clk 0:01:52.7]} 14.
c4 {[%clk 0:02:33.2]} 14... Re8 {[%clk 0:01:47.7]} 15. Bb2 {[%clk 0:02:30.2]}
15... Ne5 {[%clk 0:01:42.9]} 16. Nxe5 {[%clk 0:02:28.8]} 16... Bxe5 {[%clk
0:01:43.8]} 17. Bxe5 {[%clk 0:02:27.7]} 17... Rxe5 {[%clk 0:01:44.7]} 18. Bf3
{[%clk 0:02:27.3]} 18... Qd6 {[%clk 0:01:38.8]} 19. a4 {[%clk 0:02:26.8]} 19...
Be4 {[%clk 0:01:35.8]} 20. Qd2 {[%clk 0:01:52.1]} 20... Rae8 {[%clk 0:01:32.9]}
21. a5 {[%clk 0:01:42.1]} 21... Bxf3 {[%clk 0:01:30.8]} 22. Rxf3 {[%clk
0:01:42.9]} 22... Re4 {[%clk 0:01:31.3]} 23. axb6 {[%clk 0:01:40.1]} 23... axb6
{[%clk 0:01:13.6]} 24. Qc2 {[%clk 0:01:39]} 24... b5 {[%clk 0:00:39.9]} 25. cxb5
{[%clk 0:01:37.1]} 25... Qxd5 {[%clk 0:00:29.5]} 26. Qb1 {[%clk 0:01:23.8]}
26... Rb4 {[%clk 0:00:26.8]} 27. Qc2 {[%clk 0:01:17.8]} 27... Rxb5 {[%clk
0:00:25.8]} 28. h3 {[%clk 0:01:16.5]} 28... c4 {[%clk 0:00:22.6]} 29. Rd1 {[%clk
0:01:14.6]} 29... Qc6 {[%clk 0:00:16]} 30. Rd4 {[%clk 0:01:07.4]} 30... Rc5
{[%clk 0:00:12.4]} 31. Rc3 {[%clk 0:01:02]} 31... Qc7 {[%clk 0:00:11.1]} 32. g3
{[%clk 0:01:00.4]} 32... Rc8 {[%clk 0:00:09.6]} 33. Qe2 {[%clk 0:00:57.4]} 33...
g6 {[%clk 0:00:09.9]} 34. h4 {[%clk 0:00:56.9]} 34... Qc6 {[%clk 0:00:09.8]} 35.
Qe3 {[%clk 0:00:47.5]} 35... Qe6 {[%clk 0:00:10.1]} 36. Re4 {[%clk 0:00:40.1]}
36... Qd7 {[%clk 0:00:09.9]} 37. Kh2 {[%clk 0:00:37.9]} 37... R5c7 {[%clk
0:00:10.1]} 38. h5 {[%clk 0:00:35.4]} 38... Qf5 {[%clk 0:00:09.5]} 39. h6 {[%clk
0:00:32.9]} 39... Qd7 {[%clk 0:00:08.6]} 40. Qf4 {[%clk 0:00:28.8]} 40... Rc6
{[%clk 0:00:06.5]} 41. Rce3 {[%clk 0:00:16.2]} 41... Rf8 {[%clk 0:00:04.4]} 42.
Rd4 {[%clk 0:00:14.8]} 42... Qc7 {[%clk 0:00:03.7]} 43. Qg5 {[%clk 0:00:09.7]}
43... f6 {[%clk 0:00:03]} 44. Qd5+ {[%clk 0:00:09.3]} 44... Kh8 {[%clk
0:00:02.4]} 45. Re6 {[%clk 0:00:07.9]} 45... Rxe6 {[%clk 0:00:02.2]} 46. Qxe6
{[%clk 0:00:08.8]} 46... c3 {[%clk 0:00:02.8]} 47. Rd7 {[%clk 0:00:08.4]} 47...
Qc5 {[%clk 0:00:02.1]} 48. Rf7 {[%clk 0:00:03.3]} 48... Qh5+ {[%clk 0:00:02.7]}
49. Kg2 {[%clk 0:00:03.3]} 49... Qxh6 {[%clk 0:00:03.4]} 50. Qxf6+ {[%clk
0:00:03.9]} 50... Kg8 {[%clk 0:00:02.8]} 51. Rxf8+ {[%clk 0:00:04.3]} 51... Qxf8
{[%clk 0:00:03.5]} 52. Qxc3 {[%clk 0:00:04.9]} 52... Qf7 {[%clk 0:00:04]} 53.
Qc8+ {[%clk 0:00:04.9]} 53... Qf8 {[%clk 0:00:04.6]} 54. Qc3 {[%clk 0:00:05.8]}
54... Qf7 {[%clk 0:00:05.2]} 55. Qd4 {[%clk 0:00:06]} 55... Qf8 {[%clk
0:00:05.7]} 56. Qd5+ {[%clk 0:00:06.2]} 56... Qf7 {[%clk 0:00:06.3]} 57. Qd6
{[%clk 0:00:06.7]} 57... Qf8 {[%clk 0:00:07]} 58. Qe5 {[%clk 0:00:07]} 58... Qf7
{[%clk 0:00:07.7]} 59. f4 {[%clk 0:00:07.5]} 59... Qg7 {[%clk 0:00:08.2]} 60.
Qe8+ {[%clk 0:00:06.7]} 60... Qf8 {[%clk 0:00:08.3]} 61. Qc6 {[%clk 0:00:06.8]}
61... Qf7 {[%clk 0:00:08.9]} 62. Kf3 {[%clk 0:00:06.8]} 62... Qb3+ {[%clk
0:00:08.4]} 63. Kg4 {[%clk 0:00:06.8]} 63... Qf7 {[%clk 0:00:08.5]} 64. Qc8+
{[%clk 0:00:04.6]} 64... Kg7 {[%clk 0:00:09]} 65. Kf3 {[%clk 0:00:04.6]} 65...
Qf6 {[%clk 0:00:09.3]} 66. Qc7+ {[%clk 0:00:04.5]} 66... Qf7 {[%clk 0:00:10]}
67. Qe5+ {[%clk 0:00:05]} 67... Qf6 {[%clk 0:00:10.5]} 68. Ke4 {[%clk
0:00:05.3]} 68... Qxe5+ {[%clk 0:00:07.9]} 69. Kxe5 {[%clk 0:00:06.2]} 69... Kf7
{[%clk 0:00:08.3]} 70. g4 {[%clk 0:00:06.5]} 70... h5 {[%clk 0:00:08.1]} 71.
gxh5 {[%clk 0:00:03.7]} 71... gxh5 {[%clk 0:00:09]} 72. Kf5 {[%clk 0:00:03.9]}
72... h4 {[%clk 0:00:07.8]} 73. Kg4 {[%clk 0:00:04.3]} 73... Kf6 {[%clk
0:00:07.8]} 74. Kxh4 {[%clk 0:00:04.9]} 74... Kf5 {[%clk 0:00:08]} 75. Kg3
{[%clk 0:00:05.8]} 75... Kf6 {[%clk 0:00:08.7]} 76. Kg4 {[%clk 0:00:06.7]} 76...
Kg6 {[%clk 0:00:09.4]} 77. f5+ {[%clk 0:00:07.6]} 77... Kf6 {[%clk 0:00:10.2]}
78. Kf4 {[%clk 0:00:08.5]} 78... Kg7 {[%clk 0:00:10.7]} 79. Ke5 {[%clk
0:00:09.4]} 79... Kf7 {[%clk 0:00:11.3]} 80. Kd5 {[%clk 0:00:09.6]} 80... Kf6
{[%clk 0:00:11.6]} 81. Ke4 {[%clk 0:00:10]} 81... Kf7 {[%clk 0:00:12.2]} 82. Kf4
{[%clk 0:00:10.9]} 82... Kf6 {[%clk 0:00:12.3]} 83. Kg4 {[%clk 0:00:11.8]} 83...
Kf7 {[%clk 0:00:13]} 84. Kg5 {[%clk 0:00:12.4]} 84... Kg7 {[%clk 0:00:13.5]} 85.
Kh5 {[%clk 0:00:12.7]} 85... Kf7 {[%clk 0:00:13.7]} 86. Kg5 {[%clk 0:00:12.4]}
86... Kg7 {[%clk 0:00:14.1]} 87. f6+ {[%clk 0:00:13]} 87... Kf7 {[%clk
0:00:14.7]} 88. Kf5 {[%clk 0:00:13.9]} 88... Kf8 {[%clk 0:00:11]} 89. Ke5 {[%clk
0:00:14.2]} 89... Kf7 {[%clk 0:00:11.2]} 90. Kf5 {[%clk 0:00:14.7]} 90... Kf8
{[%clk 0:00:11.7]} 91. Kg6 {[%clk 0:00:15.6]} 91... Kg8 {[%clk 0:00:12]} 92. Kg5
{[%clk 0:00:15.7]} 92... Kf7 {[%clk 0:00:12.1]} 93. Kf5 {[%clk 0:00:15.7]}
1/2-1/2

[Event "Early-Titled-Tuesday-Blitz-April-02-2024"]
[Site "Chess.com"]
[Date "2024.04.02"]
[Round "1"]
[White "sokidze"]
[Black "RuperezA"]
[Result "0-1"]
[WhiteElo "2781"]
[BlackElo "2514"]
[TimeControl "180+1"]
[EndTime "8:09:29 PDT"]
[Termination "RuperezA won by resignation"]

1. d4 {[%clk 0:03:00.9]} 1... e6 {[%clk 0:02:59.6]} 2. c4 {[%clk 0:03:00.7]}
2... Nf6 {[%clk 0:02:59.8]} 3. Nf3 {[%clk 0:03:00]} 3... d5 {[%clk 0:03:00.5]}
4. g3 {[%clk 0:03:00.2]} 4... Be7 {[%clk 0:03:00.3]} 5. Bg2 {[%clk 0:03:00.5]}
5... O-O {[%clk 0:03:00.9]} 6. Qc2 {[%clk 0:03:00.9]} 6... c6 {[%clk 0:02:59.6]}
7. O-O {[%clk 0:03:00.5]} 7... b6 {[%clk 0:03:00.1]} 8. Rd1 {[%clk 0:02:56.6]}
8... Bb7 {[%clk 0:02:59.7]} 9. b3 {[%clk 0:02:56.6]} 9... Nbd7 {[%clk
0:02:59.3]} 10. Nc3 {[%clk 0:02:56.4]} 10... Rc8 {[%clk 0:02:58.4]} 11. e4
{[%clk 0:02:54.6]} 11... Ba6 {[%clk 0:02:34.8]} 12. e5 {[%clk 0:02:41.9]} 12...
Ne8 {[%clk 0:02:34.4]} 13. cxd5 {[%clk 0:02:41.4]} 13... cxd5 {[%clk 0:02:35.3]}
14. Qb2 {[%clk 0:02:25.9]} 14... b5 {[%clk 0:02:28.8]} 15. Be3 {[%clk
0:02:09.6]} 15... b4 {[%clk 0:02:27.9]} 16. Ne2 {[%clk 0:02:08.9]} 16... Nc7
{[%clk 0:02:19.4]} 17. Nf4 {[%clk 0:01:54.9]} 17... Nb5 {[%clk 0:02:18.4]} 18.
h4 {[%clk 0:01:53.9]} 18... Qa5 {[%clk 0:01:46.8]} 19. Bh3 {[%clk 0:01:49.1]}
19... Nc3 {[%clk 0:01:12.3]} 20. Re1 {[%clk 0:01:35.4]} 20... Rc6 {[%clk
0:01:10.7]} 21. Ng5 {[%clk 0:01:03.1]} 21... Bxg5 {[%clk 0:00:54.6]} 22. hxg5
{[%clk 0:01:02.1]} 22... Qa3 {[%clk 0:00:55.3]} 23. Qd2 {[%clk 0:00:30.4]} 23...
Rfc8 {[%clk 0:00:46.1]} 24. Nh5 {[%clk 0:00:24.9]} 24... Nf8 {[%clk 0:00:39]}
25. Bf4 {[%clk 0:00:16.6]} 25... Ne4 {[%clk 0:00:34.6]} 26. Qd1 {[%clk 0:00:15]}
26... Qb2 {[%clk 0:00:31.9]} 27. Be3 {[%clk 0:00:10.4]} 27... Rc2 {[%clk
0:00:19.9]} 28. Rb1 {[%clk 0:00:08.2]} 28... Qc3 {[%clk 0:00:19.3]} 29. Qg4
{[%clk 0:00:07.4]} 29... Rxa2 {[%clk 0:00:16.1]} 30. Rbc1 {[%clk 0:00:05]} 30...
Rc2 {[%clk 0:00:14.9]} 31. Rxc2 {[%clk 0:00:05.5]} 31... Qxc2 {[%clk 0:00:15.8]}
32. Rc1 {[%clk 0:00:06.2]} 32... Qxc1+ {[%clk 0:00:16.3]} 33. Bxc1 {[%clk
0:00:07.1]} 33... Rxc1+ {[%clk 0:00:16.9]} 34. Kh2 {[%clk 0:00:01.8]} 34... Rh1+
{[%clk 0:00:16.3]} 35. Kg2 {[%clk 0:00:01.8]} 35... Bf1+ {[%clk 0:00:15.4]} 36.
Kxh1 {[%clk 0:00:01.9]} 36... Nxf2+ {[%clk 0:00:16.1]} 37. Kg1 {[%clk
0:00:02.5]} 37... Nxg4 {[%clk 0:00:16.8]} 38. Bxf1 {[%clk 0:00:02.5]} 38... Ne3
{[%clk 0:00:16.6]} 39. Bd3 {[%clk 0:00:03.1]} 39... Nd7 {[%clk 0:00:15.2]} 40.
Nf4 {[%clk 0:00:03.3]} 40... Nb6 {[%clk 0:00:14.3]} 41. Kf2 {[%clk 0:00:03.4]}
41... Nf5 {[%clk 0:00:14.5]} 42. Bxf5 {[%clk 0:00:02.5]} 42... exf5 {[%clk
0:00:15.4]} 43. Ke3 {[%clk 0:00:01.9]} 43... g6 {[%clk 0:00:14.8]} 44. Nd3
{[%clk 0:00:02.4]} 44... Kf8 {[%clk 0:00:14.8]} 45. Nxb4 {[%clk 0:00:02.7]}
45... Ke7 {[%clk 0:00:15.5]} 46. Nc6+ {[%clk 0:00:03.3]} 46... Kd7 {[%clk
0:00:15.1]} 47. Nxa7 {[%clk 0:00:03.9]} 47... Na8 {[%clk 0:00:10.9]} 48. Nb5
{[%clk 0:00:04.2]} 48... Kc6 {[%clk 0:00:10.4]} 49. Nc3 {[%clk 0:00:04.2]} 49...
Nc7 {[%clk 0:00:10.8]} 50. Kd3 {[%clk 0:00:03.8]} 50... Ne6 {[%clk 0:00:11.2]}
51. b4 {[%clk 0:00:02.5]} 51... Nc7 {[%clk 0:00:11.8]} 52. Kc2 {[%clk
0:00:02.3]} 52... Ne6 {[%clk 0:00:09.1]} 53. Kd3 {[%clk 0:00:02]} 53... Nxg5
{[%clk 0:00:09.2]} 54. b5+ {[%clk 0:00:02.6]} 54... Kb6 {[%clk 0:00:09.9]} 55.
Nxd5+ {[%clk 0:00:03.3]} 55... Kxb5 {[%clk 0:00:10.8]} 56. Nf6 {[%clk
0:00:03.7]} 56... Kc6 {[%clk 0:00:10.4]} 57. d5+ {[%clk 0:00:02.6]} 57... Kc7
{[%clk 0:00:11]} 58. Kd4 {[%clk 0:00:02.7]} 58... h5 {[%clk 0:00:11.6]} 59. d6+
{[%clk 0:00:03.1]} 59... Kc6 {[%clk 0:00:11.6]} 60. Ke3 {[%clk 0:00:03.3]} 60...
Ne6 {[%clk 0:00:11.6]} 61. Nh7 {[%clk 0:00:02.9]} 61... Kd5 {[%clk 0:00:10.5]}
62. d7 {[%clk 0:00:02.9]} 62... Kxe5 {[%clk 0:00:10]} 63. Ng5 {[%clk 0:00:02.7]}
63... Nd8 {[%clk 0:00:09.9]} 64. Nf3+ {[%clk 0:00:02.8]} 64... Kd6 {[%clk
0:00:10.4]} 65. Kd4 {[%clk 0:00:02.8]} 65... Ne6+ {[%clk 0:00:10.5]} 66. Ke3
{[%clk 0:00:03]} 66... Kxd7 {[%clk 0:00:11.4]} 67. Ne5+ {[%clk 0:00:03]} 67...
Ke7 {[%clk 0:00:12.2]} 68. Nf3 {[%clk 0:00:03.5]} 68... Kf6 {[%clk 0:00:12.8]}
69. Nd2 {[%clk 0:00:04.1]} 69... g5 {[%clk 0:00:13.4]} 70. Kf3 {[%clk
0:00:04.6]} 70... g4+ {[%clk 0:00:13.4]} 71. Ke3 {[%clk 0:00:05.2]} 71... Kg5
{[%clk 0:00:13.9]} 72. Nc4 {[%clk 0:00:05.9]} 72... f4+ {[%clk 0:00:14.4]} 73.
gxf4+ {[%clk 0:00:06.3]} 73... Nxf4 {[%clk 0:00:15.3]} 74. Ne5 {[%clk
0:00:06.7]} 74... Nd5+ {[%clk 0:00:13.7]} 75. Ke4 {[%clk 0:00:07.1]} 75... Nf6+
{[%clk 0:00:13.6]} 76. Ke3 {[%clk 0:00:07.7]} 76... Nd5+ {[%clk 0:00:13.7]} 77.
Ke4 {[%clk 0:00:08]} 77... Nc3+ {[%clk 0:00:14.3]} 78. Kd3 {[%clk 0:00:08.2]}
78... g3 {[%clk 0:00:09.1]} 79. Kxc3 {[%clk 0:00:04]} 79... Kf4 {[%clk
0:00:08.3]} 80. Nd3+ {[%clk 0:00:02.8]} 80... Ke3 {[%clk 0:00:07.5]} 81. Ne1
{[%clk 0:00:03.3]} 81... f5 {[%clk 0:00:05.5]} 82. Ng2+ {[%clk 0:00:01.8]} 82...
Kf3 {[%clk 0:00:05.1]} 83. Nh4+ {[%clk 0:00:02.2]} 83... Kg4 {[%clk 0:00:05.7]}
84. Ng2 {[%clk 0:00:02.8]} 84... h4 {[%clk 0:00:05.1]} 85. Kd2 {[%clk 0:00:03]}
85... h3 {[%clk 0:00:05.5]} 86. Ne3+ {[%clk 0:00:03.6]} 86... Kf4 {[%clk
0:00:05.2]} 87. Ke2 {[%clk 0:00:01.8]} 87... h2 {[%clk 0:00:05.5]} 88. Ng2+
{[%clk 0:00:02.5]} 88... Kg4 {[%clk 0:00:05.8]} 0-1

[Event "Early-Titled-Tuesday-Blitz-April-02-2024"]
[Site "Chess.com"]
[Date "2024.04.02"]
[Round "1"]
[White "JJDAREK"]
[Black "Alexei_Gubajdullin"]
[Result "0-1"]
[WhiteElo "2326"]
[BlackElo "2637"]
[TimeControl "180+1"]
[EndTime "8:09:52 PDT"]
[Termination "Alexei_Gubajdullin won on time"]

1. c4 {[%clk 0:03:00.9]} 1... Nf6 {[%clk 0:02:56]} 2. Nc3 {[%clk 0:03:00.3]}
2... g6 {[%clk 0:02:54.6]} 3. d4 {[%clk 0:02:59.2]} 3... Bg7 {[%clk 0:02:54.5]}
4. e4 {[%clk 0:02:59.4]} 4... d6 {[%clk 0:02:54.7]} 5. Be2 {[%clk 0:02:59.1]}
5... O-O {[%clk 0:02:54.5]} 6. Nf3 {[%clk 0:02:59.3]} 6... Na6 {[%clk
0:02:52.6]} 7. O-O {[%clk 0:02:56.2]} 7... e5 {[%clk 0:02:52.5]} 8. d5 {[%clk
0:02:56.7]} 8... Nc5 {[%clk 0:02:52.4]} 9. Qc2 {[%clk 0:02:57.3]} 9... a5 {[%clk
0:02:52.4]} 10. Bg5 {[%clk 0:02:56.8]} 10... h6 {[%clk 0:02:51.8]} 11. Be3
{[%clk 0:02:56.8]} 11... Nh5 {[%clk 0:02:47.2]} 12. g3 {[%clk 0:02:18.1]} 12...
f5 {[%clk 0:02:46.8]} 13. Nh4 {[%clk 0:02:13.3]} 13... f4 {[%clk 0:02:35.2]} 14.
Bxc5 {[%clk 0:02:11]} 14... dxc5 {[%clk 0:02:34.3]} 15. Bxh5 {[%clk 0:01:57.4]}
15... gxh5 {[%clk 0:02:33.8]} 16. f3 {[%clk 0:01:43.8]} 16... Qg5 {[%clk
0:02:30.1]} 17. Qg2 {[%clk 0:01:33.4]} 17... a4 {[%clk 0:02:30]} 18. Kh1 {[%clk
0:01:32]} 18... a3 {[%clk 0:02:27.3]} 19. b3 {[%clk 0:01:30.4]} 19... fxg3
{[%clk 0:02:24.4]} 20. hxg3 {[%clk 0:01:25.2]} 20... Bf6 {[%clk 0:02:19]} 21. d6
{[%clk 0:01:23.3]} 21... c6 {[%clk 0:02:17.3]} 22. Rad1 {[%clk 0:01:21]} 22...
Bd7 {[%clk 0:02:16.9]} 23. Na4 {[%clk 0:01:19.7]} 23... Rf7 {[%clk 0:02:10.2]}
24. Nxc5 {[%clk 0:01:18]} 24... Raf8 {[%clk 0:02:09.2]} 25. Nxd7 {[%clk
0:01:15.1]} 25... Rxd7 {[%clk 0:02:08]} 26. Nf5 {[%clk 0:01:13.7]} 26... Bd8
{[%clk 0:02:05.6]} 27. f4 {[%clk 0:01:08.6]} 27... Qf6 {[%clk 0:01:56.6]} 28. c5
{[%clk 0:00:53.7]} 28... Kh7 {[%clk 0:01:54.4]} 29. Qh3 {[%clk 0:00:51.9]} 29...
exf4 {[%clk 0:01:51.4]} 30. gxf4 {[%clk 0:00:51]} 30... Ba5 {[%clk 0:01:42.1]}
31. Nh4 {[%clk 0:00:34]} 31... Rg7 {[%clk 0:01:36.9]} 32. e5 {[%clk 0:00:33.2]}
32... Qf7 {[%clk 0:01:30.3]} 33. e6 {[%clk 0:00:32.1]} 33... Qf6 {[%clk
0:01:30.3]} 34. e7 {[%clk 0:00:31.6]} 34... Rfg8 {[%clk 0:01:30.3]} 35. Qf5+
{[%clk 0:00:23.1]} 35... Qxf5 {[%clk 0:01:29.8]} 36. Nxf5 {[%clk 0:00:24]} 36...
Rg4 {[%clk 0:01:28.2]} 37. d7 {[%clk 0:00:20.9]} 37... Kg6 {[%clk 0:00:51.8]}
38. e8=Q+ {[%clk 0:00:20.2]} 38... Kxf5 {[%clk 0:00:52]} 39. Qxg8 {[%clk
0:00:16.7]} 39... Rxg8 {[%clk 0:00:51.5]} 40. Rg1 {[%clk 0:00:15.8]} 40... Rd8
{[%clk 0:00:51.1]} 41. Rg7 {[%clk 0:00:15.4]} 41... Kxf4 {[%clk 0:00:51]} 42.
Kg2 {[%clk 0:00:14.2]} 42... Kf5 {[%clk 0:00:50.4]} 43. Re7 {[%clk 0:00:13.1]}
43... Kf6 {[%clk 0:00:50.2]} 44. Re8 {[%clk 0:00:13.5]} 44... Kf7 {[%clk
0:00:45.9]} 45. Rxd8 {[%clk 0:00:13.6]} 45... Bxd8 {[%clk 0:00:45.9]} 46. Kf3
{[%clk 0:00:13.9]} 46... Ke6 {[%clk 0:00:44.2]} 47. Kf4 {[%clk 0:00:14.1]} 47...
Bc7+ {[%clk 0:00:43.8]} 48. Ke4 {[%clk 0:00:13.9]} 48... Bd8 {[%clk 0:00:42.8]}
49. b4 {[%clk 0:00:14.1]} 49... h4 {[%clk 0:00:42.3]} 50. Kf4 {[%clk 0:00:13.5]}
50... h5 {[%clk 0:00:41.2]} 51. Kf3 {[%clk 0:00:13.3]} 51... Ke7 {[%clk
0:00:33.1]} 52. Kg2 {[%clk 0:00:13.5]} 52... Ke6 {[%clk 0:00:30.7]} 53. Kh3
{[%clk 0:00:13.9]} 53... Ke5 {[%clk 0:00:25.9]} 54. Rd3 {[%clk 0:00:13.7]} 54...
Ke6 {[%clk 0:00:24.8]} 55. Rd2 {[%clk 0:00:12.5]} 55... Ke5 {[%clk 0:00:24.1]}
56. Re2+ {[%clk 0:00:12.3]} 56... Kd4 {[%clk 0:00:24.3]} 57. Re8 {[%clk
0:00:12.2]} 57... Bg5 {[%clk 0:00:23.9]} 58. d8=Q+ {[%clk 0:00:12.1]} 58... Bxd8
{[%clk 0:00:23.7]} 59. Rxd8+ {[%clk 0:00:13]} 59... Kc4 {[%clk 0:00:24.2]} 60.
Rb8 {[%clk 0:00:13.2]} 60... Kxb4 {[%clk 0:00:23.3]} 61. Rxb7+ {[%clk
0:00:13.8]} 61... Kxc5 {[%clk 0:00:23.6]} 62. Ra7 {[%clk 0:00:13.8]} 62... Kb4
{[%clk 0:00:23.5]} 63. Rb7+ {[%clk 0:00:13.3]} 63... Ka4 {[%clk 0:00:22.8]} 64.
Rb3 {[%clk 0:00:12.8]} 64... c5 {[%clk 0:00:22.7]} 65. Kxh4 {[%clk 0:00:13.2]}
65... c4 {[%clk 0:00:23.1]} 66. Rf3 {[%clk 0:00:11.9]} 66... Kb4 {[%clk
0:00:22.6]} 67. Kxh5 {[%clk 0:00:11.7]} 67... c3 {[%clk 0:00:22.8]} 68. Rf4+
{[%clk 0:00:11.3]} 68... Kc5 {[%clk 0:00:21.3]} 69. Ra4 {[%clk 0:00:09]} 69...
c2 {[%clk 0:00:20]} 70. Ra5+ {[%clk 0:00:08]} 70... Kb6 {[%clk 0:00:17.7]} 71.
Rxa3 {[%clk 0:00:07.2]} 71... c1=Q {[%clk 0:00:17.6]} 72. Rb3+ {[%clk
0:00:07.1]} 72... Ka5 {[%clk 0:00:17.9]} 73. Kg4 {[%clk 0:00:06.5]} 73... Qd1+
{[%clk 0:00:17.1]} 74. Rf3 {[%clk 0:00:05.9]} 74... Qe2 {[%clk 0:00:16.5]} 75.
Kf4 {[%clk 0:00:05.8]} 75... Qxa2 {[%clk 0:00:16.2]} 76. Re3 {[%clk 0:00:06.7]}
76... Kb6 {[%clk 0:00:15.9]} 77. Re4 {[%clk 0:00:06.9]} 77... Kc6 {[%clk
0:00:16]} 78. Kf3 {[%clk 0:00:07.4]} 78... Kd5 {[%clk 0:00:15.7]} 79. Rf4 {[%clk
0:00:07.9]} 79... Qc2 {[%clk 0:00:15.6]} 80. Rg4 {[%clk 0:00:07.5]} 80... Ke5
{[%clk 0:00:15.7]} 81. Kg3 {[%clk 0:00:07.7]} 81... Kf5 {[%clk 0:00:15.2]} 82.
Rf4+ {[%clk 0:00:07.3]} 82... Ke5 {[%clk 0:00:15.5]} 83. Rg4 {[%clk 0:00:07.4]}
83... Qd2 {[%clk 0:00:15.4]} 84. Kf3 {[%clk 0:00:06.5]} 84... Kf5 {[%clk
0:00:15.2]} 85. Rh4 {[%clk 0:00:05.8]} 85... Qd3+ {[%clk 0:00:15.1]} 86. Kg2
{[%clk 0:00:05.2]} 86... Kg5 {[%clk 0:00:14.8]} 87. Rh3 {[%clk 0:00:05.4]} 87...
Qd2+ {[%clk 0:00:14.2]} 88. Kg3 {[%clk 0:00:05.5]} 88... Qf4+ {[%clk 0:00:14.2]}
89. Kg2 {[%clk 0:00:06]} 89... Kg4 {[%clk 0:00:14.5]} 90. Rh2 {[%clk 0:00:02.4]}
90... Qe4+ {[%clk 0:00:13.4]} 91. Kf2 {[%clk 0:00:01.4]} 91... Qf4+ {[%clk
0:00:13.5]} 92. Kg2 {[%clk 0:00:01.7]} 92... Qf3+ {[%clk 0:00:13.6]} 93. Kg1
{[%clk 0:00:02.1]} 93... Qd1+ {[%clk 0:00:13.2]} 94. Kg2 {[%clk 0:00:02.2]}
94... Qd3 {[%clk 0:00:13.1]} 0-1